fUSD/lending_fUSD_20251130
["ID","MTS","AMOUNT","RATE_DAILY","PERIOD"]
[395168913,1764504639755,-552.02,0.00016192,2]
[395168914,1764504639764,-552.02,0.00016192,2]
[395168915,1764504639773,-1716.0,0.00016195,2]
[395168916,1764504639783,-1000.0,0.00016246,2]
[395168917,1764504639792,-1716.0,0.00016249,2]
[395168918,1764504639801,-1716.0,0.00016318,2]
[395168919,1764504639812,-1837.83283351,0.00016323,2]
[395168920,1764504639821,-1716.0,0.00016335,2]
[395168921,1764504639831,-1716.0,0.0001635,2]
[395168922,1764504639840,-287.61899177,0.00016354,2]
[395168923,1764504639850,-1112.57,0.00016356,2]
[395168924,1764504639859,-150.0,0.00016356,2]
[395168925,1764504639868,-1213.78,0.00016356,2]
[395168926,1764504639878,-150.0,0.00016356,2]
[395168927,1764504639887,-1213.78,0.00016356,2]
[395168928,1764504639897,-1213.78,0.00016356,2]
[395168929,1764504639910,-1213.78,0.00016356,2]
[395168930,1764504639921,-1213.78,0.00016356,2]
[395168931,1764504639932,-1213.78,0.00016356,2]
[395168932,1764504639942,-312.71,0.00016356,2]
[395168933,1764504639951,-170.01,0.00016356,2]
[395168934,1764504639960,-1213.78,0.00016356,2]
[395168936,1764504639969,-170.01,0.00016356,2]
[395168938,1764504639982,-1213.78,0.00016356,2]
[395168940,1764504639992,-170.01,0.00016356,2]
[395168942,1764504640001,-1213.78,0.00016356,2]
[395168944,1764504640010,-1213.78,0.00016356,2]
[395168946,1764504640020,-170.01,0.00016356,2]
[395168947,1764504640029,-170.01,0.00016356,2]
[395168948,1764504640365,-1213.78,0.00016356,2]
[395168949,1764504640374,-170.01,0.00016356,2]
[395168950,1764504640384,-170.01,0.00016356,2]
[395168951,1764504640394,-305.23,0.00016356,2]
[395168952,1764504640403,-177.88,0.00016356,2]
[395168953,1764504640413,-177.88,0.00016356,2]
[395168954,1764504640422,-177.88,0.00016356,2]
[395168955,1764504640431,-177.88,0.00016356,2]
[395168956,1764504640441,-166.66,0.00016366,2]
[395168957,1764504640450,-1716.0,0.00016382,2]
[395168958,1764504640461,-380.37,0.00016438,2]
[395168959,1764504640470,-373.73,0.00016438,2]
[395168960,1764504640479,-1716.0,0.00016453,2]
[395168961,1764504640489,-266.78017722,0.000165,2]
[395168962,1764504640498,-1716.0,0.00016504,2]
[395168963,1764504640507,-151.0,0.00016518,2]
[395168964,1764504640517,-1001.35128612,0.00016521,2]
[395168965,1764504640526,-1000.0,0.00016521,2]
[395168966,1764504640535,-1000.0,0.00016521,2]
[395168967,1764504640544,-512.61581703,0.00016521,2]
[395168968,1764504640554,-696.8967906,0.00016521,2]
[395168969,1764504640563,-1000.0,0.00016521,2]
[395168970,1764504640572,-1000.0,0.00016521,2]
[395168971,1764504640581,-1000.0,0.00016521,2]
[395168972,1764504640590,-995.14510969,0.00016521,2]
[395168973,1764504640600,-1000.0,0.00016521,2]
[395168974,1764504640609,-1716.0,0.00016549,2]
[395168975,1764504640618,-1716.0,0.00016558,2]
[395168976,1764504640627,-1716.0,0.00016582,2]
[395168978,1764504640636,-1716.0,0.000167,2]
[395168980,1764504640645,-151.0,0.00016709,2]
[395168981,1764504640654,-380.37,0.00016712,2]
[395168983,1764504640664,-222.74,0.00016712,2]
[395168985,1764504640674,-17526.55930496,0.0001683,2]
[395168986,1764504640683,-154.59089,0.0001683,2]
[395168987,1764504640692,-166.66,0.00016843,2]
[395168988,1764504640701,-200.0,0.00016863,2]
[395168989,1764504640712,-200.0,0.00016864,2]
[395168990,1764504640722,-200.0,0.00016864,2]
[395168991,1764504640731,-200.0,0.00016864,2]
[395168992,1764504640740,-7743.020423,0.00016892,2]
[395168993,1764504640750,-339.01525842,0.000169,2]
[395168994,1764504640759,-1837.83283351,0.000169,2]
[395168995,1764504640768,-796.00312092,0.000169,2]
[395168996,1764504640778,-333.47522152,0.000169,2]
[395168997,1764504640787,-162.94935356,0.00016925,2]
[395168998,1764504640796,-222.29257723,0.00016931,2]
[395168999,1764504640806,-154.5909,0.0001695,2]
[395169000,1764504640815,-1347.0,0.00016959,2]
[395169001,1764504640824,-500.0,0.00016973,2]
[395169002,1764504640833,-500.0,0.00016973,2]
[395169003,1764504640843,-500.0,0.00016973,2]
[395169004,1764504640852,-540.53867105,0.00016973,2]
[395169005,1764504640861,-500.0,0.00016973,2]
[395169006,1764504640871,-500.0,0.00016973,2]
[395169007,1764504640880,-500.0,0.00016973,2]
[395169008,1764504640889,-232.40806133,0.00016973,2]
[395169009,1764504640898,-500.0,0.00016973,2]
[395169010,1764504640907,-500.0,0.00016973,2]
[395169011,1764504640917,-500.0,0.00016973,2]
[395169012,1764504640926,-215.92719524,0.00016973,2]
[395169013,1764504640935,-500.0,0.00016973,2]
[395169014,1764504640944,-500.0,0.00016973,2]
[395169015,1764504640954,-500.0,0.00016973,2]
[395169016,1764504640964,-500.0,0.00016973,2]
[395169017,1764504640975,-200.00768026,0.00016973,2]
[395169018,1764504640984,-500.0,0.00016973,2]
[395169019,1764504640993,-500.0,0.00016973,2]
[395169020,1764504641003,-415.54250471,0.00016973,2]
[395169021,1764504641013,-500.0,0.00016973,2]
[395169022,1764504641022,-500.838144,0.00016973,2]
[395169023,1764504641032,-500.0,0.00016973,2]
[395169024,1764504641042,-500.0,0.00016973,2]
[395169025,1764504641051,-500.0,0.00016973,2]
[395169026,1764504641060,-158.23743081,0.00016986,2]
[395169027,1764504641069,-500.0,0.00016986,2]
[395169028,1764504641082,-169.4397301,0.00016986,2]
[395169029,1764504641091,-150.0,0.00016986,2]
[395169030,1764504641100,-150.0,0.00016986,2]
[395169031,1764504641110,-150.0,0.00016986,2]
[395169032,1764504641119,-380.39,0.00016986,2]
[395169033,1764504641128,-500.0,0.00016986,2]
[395169034,1764504641138,-150.0,0.00016986,2]
[395169035,1764504641147,-150.0,0.00016986,2]
[395169036,1764504641157,-150.0,0.00016986,2]
[395169037,1764504641166,-150.0,0.00016986,2]
[395169038,1764504641175,-150.0,0.00016986,2]
[395169039,1764504641185,-160.73087474,0.00016986,2]
[395169040,1764504641194,-150.0,0.00016986,2]
[395169041,1764504641203,-150.0,0.00016986,2]
[395169042,1764504641213,-246.57118594,0.0001699,2]
[395169043,1764504641222,-246.57118594,0.0001699,2]
[395169044,1764504641231,-246.57118594,0.0001699,2]
[395169045,1764504641240,-151.0,0.00016997,2]
[395169046,1764504641249,-216.68239479,0.00016999,5]
[395169047,1764504641258,-300.0,0.00016999,2]
[395169048,1764504641268,-300.0,0.00016999,2]
[395169049,1764504641277,-2822822.69843175,0.00017,2]
[395169050,1764504641287,-4392554.39100977,0.00017,2]
[395169051,1764504641301,-2256.33195008,0.00017,2]
[395169052,1764504641313,-254.40288141,0.00017,2]
[395169053,1764504641323,-7389.36454677,0.00017,2]
[395169054,1764504641334,-480.66000001,0.00017,2]
[395169060,1764504643105,-277.92596841,0.00012999,2]
[395169061,1764504643117,-766.66,0.00012999,2]
[395169062,1764504643265,-2.41403159,0.00012999,2]
[395169063,1764504643275,-450.0,0.00013025,2]
[395169064,1764504643285,-177.48587458,0.00013154,2]
[395169065,1764504643294,-1256.93950317,0.00013371,2]
[395169068,1764504646212,-1241.24052574,0.00013371,2]
[395169069,1764504646319,-8971.22699232,0.00013371,2]
[395169070,1764504646328,-500.0,0.00013698,2]
[395169071,1764504646338,-500.0,0.00013698,2]
[395169072,1764504646347,-500.0,0.00013698,2]
[395169073,1764504646357,-2718.0,0.00015114,2]
[395169074,1764504646366,-500.0,0.00016103,2]
[395169075,1764504646376,-552.02,0.00016192,2]
[395169076,1764504646385,-7532.0,0.00016318,2]
[395169077,1764504646394,-177.88,0.00016356,2]
[395169078,1764504646403,-512.90563522,0.00016999,2]
[395169079,1764504646413,-326458.56448781,0.00017,2]
[395169082,1764504700213,-295.8306,0.00011607,2]
[395169083,1764504721668,300.0,0.00011706,2]
[395169084,1764504721879,150.0,0.00011706,2]
[395169085,1764504725473,208.37081392,0.00011706,2]
[395169086,1764504732035,4088.345,0.00011607,2]
[395169087,1764504738533,4661.63298608,0.00011607,2]
[395169088,1764504738554,10000.01,0.00011607,2]
[395169089,1764504738576,10000.01,0.00011607,2]
[395169091,1764504781058,-1200.0,0.00011606,2]
[395169092,1764504781282,-1277.95578608,0.00011607,2]
[395169093,1764504788199,-2555.91157216,0.00011607,2]
[395169094,1764504788232,-4888.18685568,0.00011607,2]
[395169095,1764504793642,-2500.0,0.00011607,2]
[395169096,1764504793675,-500.0,0.00011705,2]
[395169097,1764504793708,-500.0,0.00011705,2]
[395169098,1764504793740,-500.0,0.00011705,2]
[395169099,1764504793772,-500.0,0.00011705,2]
[395169100,1764504793804,-500.0,0.00011705,2]
[395169101,1764504796625,-500.0,0.00011705,2]
[395169102,1764504796660,-500.0,0.00011705,2]
[395169103,1764504796692,-500.0,0.00011705,2]
[395169104,1764504796724,-500.0,0.00011705,2]
[395169105,1764504796757,-500.0,0.00011705,2]
[395169106,1764504796790,-500.0,0.00011705,2]
[395169107,1764504796831,-500.0,0.00011705,2]
[395169108,1764504796864,-500.0,0.00011705,2]
[395169109,1764504796895,-500.0,0.00011705,2]
[395169110,1764504796928,-500.0,0.00011705,2]
[395169111,1764504831645,-500.0,0.00011705,2]
[395169112,1764504831677,-500.0,0.00011705,2]
[395169113,1764504831711,-500.0,0.00011705,2]
[395169114,1764504831746,-500.0,0.00011705,2]
[395169115,1764504831779,-500.0,0.00011705,2]
[395169116,1764504831812,-500.0,0.00011705,2]
[395169117,1764504831846,-525.78901364,0.00011705,2]
[395169118,1764504831880,-500.0,0.00011705,2]
[395169119,1764504831916,-500.0,0.00011705,2]
[395169120,1764504831949,-448.43197272,0.00011705,2]
[395169121,1764504840706,-51.56802728,0.00011705,2]
[395169122,1764504840737,-500.0,0.00011705,2]
[395169123,1764504840767,-500.0,0.00011705,2]
[395169124,1764504840796,-500.0,0.00011705,2]
[395169125,1764504846008,205.94,0.00011607,2]
[395169129,1764504879276,-2201.58184338,0.00011607,2]
[395169130,1764504891683,-4403.16368676,0.00011607,2]
[395169134,1764504928906,-300.0,0.00011606,2]
[395169135,1764504928934,-1200.0,0.00011606,2]
[395169136,1764504928963,-1193.68262648,0.00011607,2]
[395169139,1764505013865,500.0,0.00025,120]
[395169140,1764505023362,-1070.17579347,0.00011607,2]
[395169141,1764505023390,-306.68883536,0.00011607,2]
[395169143,1764505086220,-413.0,0.00011,2]
[395169146,1764505210858,-637.0,0.00011606,2]
[395169147,1764505210888,-300.0,0.00011606,2]
[395169148,1764505210918,-1200.0,0.00011606,2]
[395169149,1764505219295,-6123.04264235,0.00011607,2]
[395169150,1764505226488,-4063.51673301,0.00011607,2]
[395169151,1764505226525,-1872.97653398,0.00011607,2]
[395169152,1764505226589,-1540.05363398,0.00011607,2]
[395169153,1764505226614,-6919.90273204,0.00011607,2]
[395169154,1764505226724,-2500.0,0.00011607,2]
[395169155,1764505226753,-316.105,0.00011607,2]
[395169156,1764505226782,-250.0,0.00011656,2]
[395169157,1764505226811,-151.0,0.00011704,2]
[395169158,1764505226839,-150.0,0.00011706,2]
[395169159,1764505226870,-500.0,0.00011706,2]
[395169160,1764505226899,-362.1605747,0.00011706,2]
[395169161,1764505226929,-621.9,0.00011707,2]
[395169162,1764505226957,-95.59321706,0.00011707,2]
[395169163,1764505227102,-106.49241648,0.00011707,2]
[395169164,1764505235484,-222.4738,0.00011707,2]
[395169165,1764505235515,-500.0,0.00011707,2]
[395169166,1764505235546,-500.0,0.00011707,2]
[395169167,1764505235577,-151.0,0.00011707,2]
[395169168,1764505235607,-151.0,0.00011707,2]
[395169169,1764505235636,-151.0,0.00011707,2]
[395169170,1764505235666,-151.0,0.00011707,2]
[395169171,1764505235698,-151.0,0.00011707,2]
[395169172,1764505235731,-151.0,0.00011707,2]
[395169173,1764505235760,-151.0,0.00011707,2]
[395169174,1764505235791,-151.0,0.00011707,2]
[395169175,1764505235820,-151.0,0.00011707,2]
[395169176,1764505235849,-151.0,0.00011707,2]
[395169177,1764505235884,-151.0,0.00011707,2]
[395169178,1764505235915,-151.0,0.00011707,2]
[395169179,1764505235946,-151.0,0.00011707,2]
[395169180,1764505235980,-151.0,0.00011707,2]
[395169181,1764505236013,-151.0,0.00011707,2]
[395169182,1764505236046,-151.0,0.00011707,2]
[395169183,1764505236076,-151.0,0.00011707,2]
[395169184,1764505236106,-151.0,0.00011707,2]
[395169185,1764505360376,-3138.570712,0.00011415,2]
[395169186,1764505360407,-250.474,0.00011473,2]
[395169187,1764505360479,-3221.920576,0.00011473,2]
[395169188,1764505386978,-1174.849424,0.00011473,2]
[395169189,1764505387006,-288.0,0.00011606,2]
[395169190,1764505387062,-7074.311152,0.00011607,2]
[395169198,1764505519520,3181.33245927,9e-05,2]
[395169201,1764505562350,500.0,0.0002,30]
[395169206,1764505621723,500.59985249,0.0002,30]
[395169346,1764505761104,-164.40486399,0.00011489,2]
[395169347,1764505761134,-2564.92,0.00011504,2]
[395169348,1764505761163,-1870.02503302,0.00011512,2]
[395169356,1764505780132,-801.31020598,0.00011512,2]
[395169357,1764505780159,-245.44,0.00011571,2]
[395169358,1764505780187,-250.0,0.00011579,2]
[395169359,1764505780215,-300.0,0.00011588,2]
[395169360,1764505780246,-202.26767465,0.00011589,2]
[395169361,1764505780279,-259.19926669,0.00011589,2]
[395169362,1764505780310,-648.51240229,0.00011589,2]
[395169363,1764505780344,-500.0,0.00011589,2]
[395169364,1764505780380,-500.0,0.00011589,2]
[395169365,1764505780412,-500.0,0.00011589,2]
[395169366,1764505780442,-500.0,0.00011589,2]
[395169367,1764505780472,-86.55090078,0.00011589,2]
[395169368,1764505794893,-413.44909922,0.00011589,2]
[395169369,1764505794923,-500.0,0.00011589,2]
[395169370,1764505794954,-237.57856196,0.00011589,2]
[395169371,1764505795097,-5731.38152357,0.0001159,2]
[395169375,1764505831949,-300.0,0.00011589,2]
[395169376,1764505831978,-1200.0,0.00011589,2]
[395169377,1764505832006,-300.0,0.00011589,2]
[395169381,1764505832034,-150.0,0.00011589,2]
[395169392,1764505832237,-6100.01,0.0001159,2]
[395169393,1764505832252,-2258.37083201,0.0001159,2]
[395169394,1764505832263,-841.29844284,0.0001159,2]
[395169395,1764505832278,-6099.9999999,0.0001159,2]
[395169396,1764505832289,-5880.0,0.0001159,2]
[395169397,1764505832300,-1300.0,0.0001159,2]
[395169398,1764505832332,-3486.03805876,0.0001159,2]
[395169399,1764505832344,-875.32682699,0.0001159,2]
[395169415,1764505838244,-288531.59536473,0.0001159,2]
[395169416,1764505838255,-151.0,0.00011604,2]
[395169417,1764505838266,-936.40381926,0.00011607,2]
[395169418,1764505838278,-10077.83382033,0.00011607,2]
[395169419,1764505838290,-6895.74749243,0.00011607,2]
[395169420,1764505838301,-686.668,0.00011607,2]
[395169421,1764505838311,-760000.0,0.00011607,2]
[395169422,1764505838323,-150.0,0.00011663,2]
[395169423,1764505838334,-151.0,0.000117,2]
[395169424,1764505838345,-151.0,0.000117,2]
[395169425,1764505838357,-151.0,0.000117,2]
[395169426,1764505838368,-151.0,0.000117,2]
[395169427,1764505838379,-151.0,0.000117,2]
[395169428,1764505838390,-151.0,0.000117,2]
[395169429,1764505838402,-151.0,0.000117,2]
[395169430,1764505838414,-151.0,0.000117,2]
[395169431,1764505838424,-151.0,0.000117,2]
[395169432,1764505838435,-151.0,0.000117,2]
[395169433,1764505838446,-151.0,0.000117,2]
[395169434,1764505838457,-151.0,0.000117,2]
[395169435,1764505838469,-151.0,0.000117,2]
[395169436,1764505838480,-500.0,0.000117,2]
[395169437,1764505838491,-187.75511032,0.000117,2]
[395169438,1764505838503,-33399.3792,0.00011707,2]
[395169439,1764505838514,-1000.0,0.00011707,2]
[395169440,1764505838525,-250.0,0.00011725,2]
[395169441,1764505838536,-2000.0,0.00011961,2]
[395169442,1764505838547,-621.9,0.00011981,2]
[395169443,1764505838557,-9999.99,0.00012195,2]
[395169444,1764505838568,-10077.83382027,0.00012195,2]
[395169445,1764505838582,-6895.74749241,0.00012195,2]
[395169447,1764505838594,-1600.0,0.00012221,2]
[395169450,1764505838604,-150.99,0.00012221,2]
[395169452,1764505838615,-310.82,0.00012221,2]
[395169454,1764505838626,-621.9,0.00012255,2]
[395169456,1764505838637,-936.40381924,0.00012363,2]
[395169457,1764505838648,-1577.0,0.00012404,2]
[395169459,1764505838660,-537.28160327,0.00012429,2]
[395169461,1764505838671,-246.57118594,0.00012453,2]
[395169463,1764505838683,-216.68239479,0.00012463,3]
[395169465,1764505838696,-19434.36,0.00012463,2]
[395169468,1764505838707,-9499.58,0.00012463,2]
[395169470,1764505838718,-9999.99,0.00012463,2]
[395169472,1764505838728,-150.99,0.00012463,2]
[395169474,1764505838738,-999.99,0.00012463,2]
[395169476,1764505838748,-167.79,0.00012463,2]
[395169478,1764505838759,-1428.12,0.00012463,2]
[395169481,1764505838769,-299.99,0.00012463,2]
[395169483,1764505838780,-12692.94775062,0.00012464,2]
[395169485,1764505838790,-22753.23,0.00012504,2]
[395169487,1764505838799,-621.9,0.00012529,2]
[395169489,1764505838809,-483.0,0.00012539,2]
[395169491,1764505838818,-300.0,0.00012568,2]
[395169493,1764505838828,-334.5472959,0.00012568,2]
[395169495,1764505838838,-163.27944846,0.00012568,2]
[395169497,1764505838849,-8000.0,0.00012568,2]
[395169499,1764505838859,-250.0,0.00012568,2]
[395169502,1764505838869,-8000.0,0.00012568,2]
[395169504,1764505838882,-533.88981491,0.00012568,2]
[395169506,1764505838893,-250.0,0.00012568,2]
[395169508,1764505838904,-8000.0,0.00012568,2]
[395169510,1764505838914,-8000.0,0.00012568,2]
[395169512,1764505838925,-578.20924308,0.00012568,2]
[395169515,1764505838935,-250.0,0.00012568,2]
[395169517,1764505838945,-8000.0,0.00012568,2]
[395169519,1764505838954,-250.0,0.00012568,2]
[395169521,1764505838964,-2472.61466531,0.00012568,2]
[395169523,1764505838973,-250.0,0.00012568,2]
[395169525,1764505838985,-250.0,0.00012568,2]
[395169527,1764505838995,-250.0,0.00012568,2]
[395169529,1764505839006,-250.0,0.00012568,2]
[395169531,1764505839016,-250.0,0.00012568,2]
[395169534,1764505839027,-250.0,0.00012568,2]
[395169536,1764505839039,-500.0,0.00012568,2]
[395169539,1764505839056,-250.0,0.00012568,2]
[395169541,1764505839066,-500.0,0.00012568,2]
[395169543,1764505839076,-250.0,0.00012568,2]
[395169545,1764505839087,-500.0,0.00012568,2]
[395169547,1764505839097,-250.0,0.00012568,2]
[395169549,1764505839107,-151.0,0.00012568,2]
[395169551,1764505839118,-620.0,0.00012568,2]
[395169554,1764505839128,-1000.0,0.00012568,2]
[395169556,1764505839139,-1000.0,0.00012568,2]
[395169558,1764505839149,-1000.0,0.00012568,2]
[395169560,1764505839159,-1000.0,0.00012568,2]
[395169562,1764505839169,-500.0,0.00012568,2]
[395169564,1764505839180,-1000.0,0.00012568,2]
[395169567,1764505839190,-500.0,0.00012568,2]
[395169569,1764505839200,-1000.0,0.00012568,2]
[395169571,1764505839211,-500.0,0.00012568,2]
[395169573,1764505839220,-1000.0,0.00012568,2]
[395169575,1764505839231,-500.0,0.00012568,2]
[395169577,1764505839241,-1000.0,0.00012568,2]
[395169579,1764505839251,-500.0,0.00012568,2]
[395169581,1764505839261,-1000.0,0.00012568,2]
[395169583,1764505839272,-500.0,0.00012568,2]
[395169585,1764505839283,-1000.0,0.00012568,2]
[395169587,1764505839294,-257.91778498,0.00012568,2]
[395169589,1764505839304,-500.0,0.00012568,2]
[395169591,1764505839314,-1000.0,0.00012568,2]
[395169593,1764505839324,-500.0,0.00012568,2]
[395169594,1764505839334,-1000.0,0.00012568,2]
[395169595,1764505839344,-500.0,0.00012568,2]
[395169596,1764505839354,-1000.0,0.00012568,2]
[395169597,1764505839364,-500.0,0.00012568,2]
[395169598,1764505839374,-1000.0,0.00012568,2]
[395169599,1764505839384,-1000.0,0.00012568,2]
[395169600,1764505839395,-1000.0,0.00012568,2]
[395169601,1764505839404,-1000.0,0.00012568,2]
[395169602,1764505839414,-1000.0,0.00012568,2]
[395169603,1764505839424,-1000.0,0.00012568,2]
[395169604,1764505839434,-1000.0,0.00012568,2]
[395169605,1764505839444,-1000.0,0.00012568,2]
[395169606,1764505839454,-151.0,0.00012568,2]
[395169607,1764505839464,-1000.0,0.00012568,2]
[395169608,1764505839474,-151.0,0.00012568,2]
[395169609,1764505839483,-1000.0,0.00012568,2]
[395169610,1764505839494,-151.0,0.00012568,2]
[395169611,1764505839504,-1000.0,0.00012568,2]
[395169612,1764505839514,-151.0,0.00012568,2]
[395169613,1764505839524,-1000.0,0.00012568,2]
[395169614,1764505839534,-151.0,0.00012568,2]
[395169615,1764505839544,-1000.0,0.00012568,2]
[395169616,1764505839555,-151.0,0.00012568,2]
[395169617,1764505839564,-151.0,0.00012568,2]
[395169618,1764505839579,-151.0,0.00012568,2]
[395169619,1764505839589,-151.0,0.00012568,2]
[395169620,1764505839599,-151.0,0.00012568,2]
[395169621,1764505839610,-151.0,0.00012568,2]
[395169622,1764505839622,-151.0,0.00012568,2]
[395169623,1764505839631,-500.0,0.00012568,2]
[395169624,1764505839643,-151.0,0.00012568,2]
[395169625,1764505839654,-500.0,0.00012568,2]
[395169626,1764505839664,-500.0,0.00012568,2]
[395169627,1764505839674,-500.0,0.00012568,2]
[395169628,1764505839684,-500.0,0.00012568,2]
[395169629,1764505839694,-500.0,0.00012568,2]
[395169630,1764505839704,-1000.0,0.00012568,2]
[395169631,1764505839714,-500.0,0.00012568,2]
[395169632,1764505839724,-358.98149521,0.00012568,2]
[395169633,1764505839734,-255.0,0.00012655,2]
[395169634,1764505839745,-250.0,0.00012704,2]
[395169635,1764505839755,-420.0,0.00012727,2]
[395169636,1764505839765,-420.0,0.00012727,2]
[395169637,1764505839776,-250.0,0.00012728,2]
[395169638,1764505839786,-740.0,0.00012747,2]
[395169639,1764505839796,-250.0,0.00012748,2]
[395169640,1764505839806,-1680.0,0.00012748,2]
[395169641,1764505839816,-10077.83382027,0.00012783,2]
[395169642,1764505839827,-6895.74749241,0.00012783,2]
[395169643,1764505839837,-621.9,0.00012803,2]
[395169644,1764505839847,-200.05386141,0.000129,2]
[395169645,1764505839857,-621.94239375,0.00013077,2]
[395169646,1764505839867,-553.64373807,0.00013116,2]
[395169647,1764505839877,-642.94,0.00013116,2]
[395169648,1764505839888,-1000.0,0.00013116,2]
[395169649,1764505839898,-936.40381924,0.00013119,2]
[395169650,1764505839909,-151.0,0.00013201,2]
[395169651,1764505839919,-321104.0210488,0.00013204,2]
[395169652,1764505839929,-400.10772281,0.000133,2]
[395169653,1764505839939,-10077.83382027,0.00013371,2]
[395169654,1764505839949,-6895.74749241,0.00013371,2]
[395169655,1764505839959,-1250.0,0.00013386,2]
[395169656,1764505839968,-1250.0,0.00013386,2]
[395169657,1764505839978,-1250.0,0.00013386,2]
[395169658,1764505839988,-1250.0,0.00013386,2]
[395169659,1764505839999,-1250.0,0.00013386,2]
[395169660,1764505840011,-470.65325857,0.00013386,2]
[395169661,1764505840020,-1250.0,0.00013386,2]
[395169662,1764505840032,-1250.0,0.00013386,2]
[395169663,1764505840042,-1250.0,0.00013386,2]
[395169664,1764505840051,-157.0,0.00013386,2]
[395169665,1764505840061,-152.0,0.00013386,2]
[395169666,1764505840071,-152.0,0.00013386,2]
[395169667,1764505840081,-152.0,0.00013386,2]
[395169668,1764505840091,-152.0,0.00013386,2]
[395169669,1764505840101,-152.0,0.00013386,2]
[395169670,1764505840112,-152.0,0.00013386,2]
[395169671,1764505840123,-152.0,0.00013386,2]
[395169672,1764505840133,-152.0,0.00013386,2]
[395169673,1764505840143,-152.0,0.00013386,2]
[395169674,1764505840153,-152.0,0.00013386,2]
[395169675,1764505840162,-152.0,0.00013386,2]
[395169676,1764505840172,-152.0,0.00013386,2]
[395169677,1764505840182,-152.0,0.00013386,2]
[395169678,1764505840192,-152.0,0.00013417,2]
[395169679,1764505840202,-152.0,0.00013417,2]
[395169680,1764505840212,-1045.29,0.00013464,2]
[395169681,1764505840222,-1037.44619269,0.00013509,2]
[395169682,1764505840232,-171.51045652,0.00013598,2]
[395169683,1764505840242,-319.96400785,0.00013664,2]
[395169684,1764505840252,-601.93299715,0.00013664,2]
[395169685,1764505840262,-1000.0,0.00013664,2]
[395169686,1764505840272,-500.0,0.00013698,2]
[395169687,1764505840282,-502.01842197,0.00013698,2]
[395169688,1764505840292,-545.90394043,0.00013698,2]
[395169689,1764505840302,-500.0,0.00013698,2]
[395169690,1764505840312,-500.0,0.00013698,2]
[395169691,1764505840322,-911.29,0.00013699,2]
[395169692,1764505840332,-153.0,0.00013699,2]
[395169693,1764505840342,-153.0,0.00013699,2]
[395169694,1764505840352,-153.0,0.00013699,2]
[395169695,1764505840362,-153.0,0.00013699,2]
[395169696,1764505840373,-153.0,0.00013699,2]
[395169697,1764505840383,-153.0,0.00013699,2]
[395169698,1764505840393,-600.16158422,0.000137,2]
[395169699,1764505840403,-999.0,0.00013706,3]
[395169700,1764505840413,-1600.0,0.00013748,2]
[395169701,1764505840424,-433.0,0.00013814,2]
[395169702,1764505840434,-936.40381924,0.00013875,2]
[395169703,1764505840444,-339.97703586,0.00013937,2]
[395169704,1764505840454,-346.92554585,0.00013937,2]
[395169705,1764505840464,-151.0,0.00013937,2]
[395169706,1764505840474,-267.46074303,0.00013937,2]
[395169707,1764505840484,-10077.83382027,0.00013959,2]
[395169708,1764505840494,-6895.74749241,0.00013959,2]
[395169709,1764505840504,-587.0,0.00013978,2]
[395169710,1764505840514,-587.0,0.00013978,2]
[395169711,1764505840524,-2351.0,0.00014023,2]